bitfinex/quotes_BTCUSD_20260101
["timestamp","ask_amount","ask_price","bid_price","bid_amount"]
[1767243412398,0.01046819,87618.0,87612.0,0.01141396]
[1767243413075,0.01046819,87618.0,87611.0,0.01141409]
[1767243413459,0.01046819,87618.0,87612.0,0.01141396]
[1767243413622,0.01046819,87618.0,87613.0,0.01141383]
[1767243413821,0.01046819,87618.0,87612.0,0.01141396]
[1767243414023,0.01046819,87618.0,87613.0,0.01141383]
[1767243414906,0.01046819,87618.0,87610.0,0.37899699]
[1767243418520,0.01046819,87618.0,87610.0,0.39041121]
[1767243418725,0.01046819,87618.0,87610.0,0.37899699]
[1767243419511,0.01046819,87618.0,87610.0,0.38986122]
[1767243419757,0.01046819,87618.0,87610.0,0.378447]
[1767243420468,0.01046819,87618.0,87610.0,0.38986122]
[1767243421061,0.01046819,87618.0,87610.0,0.378447]
[1767243421471,0.01144,87619.0,87610.0,0.378447]
[1767243421664,0.01144,87619.0,87610.0,0.38986122]
[1767243422397,0.01046819,87618.0,87610.0,0.38986122]
[1767243423786,0.01046819,87618.0,87611.0,0.01141409]
[1767243423954,0.01046819,87618.0,87610.0,0.378447]
[1767243424354,0.01046819,87618.0,87610.0,0.38986122]
[1767243425012,0.01046819,87618.0,87610.0,0.378447]
[1767243426039,0.01046819,87618.0,87610.0,0.38986122]
[1767243426306,0.01046819,87618.0,87612.0,0.01141396]
[1767243426579,0.01046819,87618.0,87611.0,0.01141409]
[1767243428023,0.01046819,87618.0,87612.0,0.01141396]
[1767243428558,0.00991819,87618.0,87615.0,0.01141357]
[1767243428964,0.00991819,87618.0,87615.0,0.38986057]
[1767243429471,0.00991819,87618.0,87616.0,0.05706659]
[1767243430751,0.00991819,87618.0,87615.0,0.378447]
[1767243430963,0.00991819,87618.0,87615.0,0.38986057]
[1767243433043,0.00991819,87618.0,87615.0,0.378447]
[1767243436718,0.00991819,87618.0,87613.0,0.38986083]
[1767243437047,0.00991819,87618.0,87614.0,0.0114137]
[1767243437250,0.00991819,87618.0,87613.0,0.38986083]
[1767243437448,0.01144,87619.0,87614.0,0.0114137]
[1767243437645,0.01144,87619.0,87613.0,0.378447]
[1767243437984,0.01144,87619.0,87614.0,0.0114137]
[1767243438151,0.01144,87619.0,87613.0,0.38986083]
[1767243438353,0.00991819,87618.0,87613.0,0.38986083]
[1767243438753,0.00991819,87618.0,87614.0,0.0114137]
[1767243439871,0.00991819,87618.0,87613.0,0.378447]
[1767243440344,0.00991819,87618.0,87613.0,0.38986083]
[1767243441004,0.00991819,87618.0,87613.0,0.378447]
[1767243443065,0.00991819,87618.0,87613.0,0.38986083]
[1767243443360,0.00991819,87618.0,87613.0,0.378447]
[1767243447782,0.00991819,87618.0,87613.0,0.38986083]
[1767243448190,0.00991819,87618.0,87613.0,0.378447]
[1767243449469,0.00991819,87618.0,87613.0,0.38986083]
[1767243449672,0.00991819,87618.0,87614.0,0.0114137]
[1767243451008,0.00991819,87618.0,87615.0,0.01141357]
[1767243451396,0.00991819,87618.0,87613.0,0.38986083]
[1767243451592,0.00991819,87618.0,87613.0,0.44692952]
[1767243451798,0.00991819,87618.0,87613.0,0.38986083]
[1767243452021,0.00991819,87618.0,87614.0,0.0114137]
[1767243452973,0.00991819,87618.0,87615.0,0.01141357]
[1767243453169,0.00991819,87618.0,87614.0,0.0114137]
[1767243453371,0.01144,87619.0,87614.0,0.0114137]
[1767243453575,0.01144,87619.0,87615.0,0.01141357]
[1767243453824,0.01144,87619.0,87613.0,0.378447]
[1767243454026,0.000549,87615.0,87613.0,0.378447]
[1767243454364,0.01144,87619.0,87613.0,0.38986083]
[1767243454503,0.00991819,87618.0,87613.0,0.38986083]
[1767243454699,0.00991819,87618.0,87613.0,0.378447]
[1767243462734,0.36961621,87626.0,87610.0,0.01141422]
[1767243462735,0.03076087,87647.0,87622.0,0.35042929]
[1767243462908,0.01144,87640.0,87627.0,0.35042929]
[1767243463113,0.01144,87640.0,87628.0,0.35042929]
[1767243463324,0.01144,87640.0,87632.0,0.01141135]
[1767243463519,0.01144,87640.0,87631.0,0.01141148]
[1767243463721,0.01144,87640.0,87629.0,0.36184103]
[1767243464520,0.01144,87640.0,87629.0,0.35042929]
[1767243464724,0.01144,87640.0,87629.0,0.36184103]
[1767243464918,0.01144,87640.0,87630.0,0.01141161]
[1767243465134,0.01149252,87640.0,87630.0,0.01141161]
[1767243465341,0.01149252,87640.0,87629.0,0.36184103]
[1767243465342,0.01149252,87640.0,87629.0,0.35042929]
[1767243465784,0.01149252,87640.0,87629.0,0.36184103]
[1767243465987,0.01149252,87640.0,87630.0,0.01141161]
[1767243466326,0.01149252,87640.0,87629.0,0.36184103]
[1767243466556,0.01149252,87640.0,87629.0,0.35042929]
[1767243467729,0.01149252,87640.0,87630.0,0.51679903]
[1767243470227,0.01149252,87640.0,87629.0,0.35042929]
[1767243470430,0.01149252,87640.0,87630.0,0.51679903]
[1767243470996,0.52829155,87640.0,87629.0,0.34948231]
[1767243471203,0.52829155,87640.0,87621.0,0.01141278]
[1767243471204,0.00055,87630.0,87622.0,0.38142514]
[1767243471427,0.86978232,87640.0,87622.0,0.37001249]
[1767243471428,0.01144,87629.0,87622.0,0.37001249]
[1767243472253,0.01144,87629.0,87622.0,0.38142514]
[1767243472765,0.01144,87629.0,87623.0,0.01141252]
[1767243472975,0.01144,87629.0,87622.0,0.37001249]
[1767243473126,0.010891,87629.0,87623.0,0.37001249]
[1767243473335,0.010891,87629.0,87623.0,0.38142501]
[1767243473900,0.010891,87629.0,87625.0,0.37001249]
[1767243474102,0.010891,87629.0,87625.0,0.38142475]
[1767243474377,0.010891,87629.0,87626.0,0.37001249]
[1767243478207,0.010891,87629.0,87626.0,0.38142462]
[1767243478503,0.010891,87629.0,87626.0,0.37001249]
[1767243481408,0.010891,87629.0,87624.0,0.01141239]
[1767243481612,0.010891,87629.0,87624.0,0.37001249]
[1767243481974,0.010891,87629.0,87617.0,0.3814258]
[1767243482231,0.010891,87629.0,87601.0,0.0001459]
[1767243482232,0.34204077,87624.0,87614.0,0.148251]
[1767243482451,0.34204077,87624.0,87610.0,0.01156012]
[1767243482452,0.34204077,87624.0,87610.0,0.51694493]
[1767243482592,0.21936171,87629.0,87614.0,0.51679903]
[1767243482794,0.21936171,87629.0,87611.0,0.37001249]
[1767243482795,0.05712,87628.0,87619.0,0.51679903]
[1767243483333,0.27648171,87628.0,87619.0,0.51679903]
[1767243483777,0.27648171,87628.0,87614.0,0.0114137]
[1767243483983,0.27648171,87628.0,87618.0,0.51679903]
[1767243485006,0.27648171,87628.0,87613.0,0.01141383]
[1767243486253,0.27648171,87628.0,87612.0,0.01141396]
[1767243486456,0.27648171,87628.0,87617.0,0.01141331]
[1767243486657,0.27648171,87628.0,87614.0,0.0114137]
[1767243487083,0.27648171,87628.0,87615.0,0.01141357]
[1767243487468,0.27648171,87628.0,87611.0,0.37001249]
[1767243488068,0.27648171,87628.0,87611.0,0.38142658]
[1767243488797,0.27648171,87628.0,87611.0,0.37001249]
[1767243489596,0.27648171,87628.0,87611.0,0.38142658]
[1767243490456,0.27648171,87628.0,87611.0,0.37001249]
[1767243496694,0.27648171,87628.0,87611.0,0.38142658]
[1767243497112,0.27648171,87628.0,87611.0,0.37001249]
[1767243497319,0.27648171,87628.0,87611.0,0.38142658]
[1767243499039,0.27648171,87628.0,87611.0,0.37001249]
[1767243499538,0.27648171,87628.0,87611.0,0.38142658]
[1767243500104,0.27648171,87628.0,87612.0,0.33547908]
[1767243500631,0.27648171,87628.0,87612.0,0.34689304]
[1767243501028,0.27648171,87628.0,87612.0,0.33547908]
[1767243504640,0.27648171,87628.0,87611.0,0.34945012]
[1767243504964,0.27648171,87628.0,87611.0,0.36086421]
[1767243505165,0.27648171,87628.0,87613.0,0.34945012]
[1767243505465,0.05712,87628.0,87613.0,0.36086395]
[1767243505761,0.05712,87628.0,87615.0,0.34945012]
[1767243512204,0.01144,87627.0,87615.0,0.34945012]
[1767243512443,0.01144,87627.0,87616.0,0.01141344]
[1767243512570,0.51679903,87630.0,87617.0,0.34945012]
[1767243512771,0.05712,87629.0,87617.0,0.34945012]
[1767243513189,0.51679903,87630.0,87617.0,0.34945012]
[1767243513453,0.05712,87628.0,87617.0,0.34945012]
[1767243513638,0.01144,87627.0,87617.0,0.34945012]
[1767243515206,0.51685155,87640.0,87627.0,0.000549]
[1767243515403,0.04568,87636.0,87627.0,0.000549]
[1767243515815,0.04568,87636.0,87623.0,0.34945012]
[1767243537417,0.04568,87636.0,87612.0,0.32215629]
[1767243537418,0.17258461,87635.0,87612.0,0.32215629]
[1767243537583,0.00055,87623.0,87612.0,0.32215629]
[1767243537783,0.01144,87622.0,87612.0,0.32215629]
[1767243542370,0.01144,87622.0,87610.0,0.0001459]
[1767243543124,0.01144,87622.0,87610.0,0.32230219]
[1767243543348,0.01144,87622.0,87612.0,0.01141396]
[1767243544060,0.01144,87622.0,87613.0,0.33357012]
[1767243544260,0.01144,87622.0,87614.0,0.33356999]
[1767243544465,0.01144,87622.0,87614.0,0.32215629]
[1767243544811,0.01144,87622.0,87614.0,0.33356999]
[1767243545046,0.01144,87622.0,87615.0,0.01141357]
[1767243545263,0.01144,87622.0,87616.0,0.32215629]
[1767243546366,0.010891,87622.0,87618.0,0.32215629]
[1767243546565,0.01144,87621.0,87618.0,0.32215629]
[1767243548354,0.01144,87621.0,87618.0,0.33356946]
[1767243549106,0.04568,87629.0,87621.0,0.01141278]
[1767243549411,0.01144,87628.0,87620.0,0.3335692]
[1767243549781,0.01144,87628.0,87620.0,0.32215629]
[1767243551885,0.01144,87627.0,87620.0,0.32215629]
[1767243552222,0.01144,87626.0,87617.0,0.32215629]
[1767243552518,0.01144,87626.0,87617.0,0.3335696]
[1767243552716,0.01144,87626.0,87617.0,0.32215629]
[1767243552920,0.01144,87626.0,87618.0,0.01141317]
[1767243553099,0.01144,87626.0,87619.0,0.32215629]
[1767243557657,0.01144,87626.0,87619.0,0.32160729]
[1767243558403,0.01144,87626.0,87603.0,0.01141513]
[1767243558404,0.01144,87626.0,87599.0,0.32215629]
[1767243558405,0.19783825,87625.0,87599.0,0.32215629]
[1767243558605,0.19694863,87619.0,87599.0,0.32215629]
[1767243558917,0.20838863,87618.0,87599.0,0.32215629]
[1767243559117,0.20838863,87618.0,87599.0,0.33357194]
[1767243559543,0.20838863,87618.0,87601.0,0.32230219]
[1767243561592,0.20838863,87618.0,87601.0,0.33371758]
[1767243561761,0.20838863,87618.0,87602.0,0.01141526]
[1767243561968,0.01144,87618.0,87606.0,0.33197238]
[1767243562262,0.01144,87618.0,87607.0,0.33197238]
[1767243566996,0.05712,87618.0,87607.0,0.33197238]
[1767243567999,0.01144,87617.0,87607.0,0.34338699]
[1767243568320,0.01144,87617.0,87609.0,0.34338673]
[1767243568538,0.01144,87617.0,87609.0,0.33197238]
[1767243568855,0.01144,87617.0,87609.0,0.34338673]
[1767243569044,0.01144,87617.0,87609.0,0.33197238]
[1767243569615,0.01144,87617.0,87609.0,0.34338673]
[1767243569808,0.01144,87617.0,87609.0,0.33197238]
[1767243571951,0.01144,87617.0,87602.0,0.33197238]
[1767243572537,0.01144,87617.0,87602.0,0.34338764]
[1767243572737,0.01144,87617.0,87602.0,0.33197238]
[1767243572941,0.01144,87617.0,87602.0,0.34338764]
[1767243573323,0.01144,87617.0,87602.0,0.33197238]
[1767243574040,0.01144,87617.0,87603.0,0.01141513]
[1767243574243,0.01144,87617.0,87602.0,0.34338764]
[1767243575850,0.01144,87617.0,87602.0,0.33197238]
[1767243589613,0.01144,87617.0,87602.0,0.34338764]
[1767243590536,0.01144,87617.0,87602.0,0.33197238]
[1767243590987,0.01144,87617.0,87602.0,0.34338764]
[1767243591376,0.01144,87617.0,87603.0,0.33055293]
[1767243591739,0.01144,87617.0,87604.0,0.011415]
[1767243592075,0.01144,87617.0,87604.0,0.3305528]
[1767243592276,0.01144,87617.0,87604.0,0.3191378]
[1767243600748,0.01144,87617.0,87605.0,0.01141487]
[1767243601047,0.01144,87617.0,87605.0,0.33055267]
[1767243601233,0.01144,87617.0,87605.0,0.3191378]
[1767243601437,0.01144,87617.0,87605.0,0.33055267]
[1767243601635,0.01144,87617.0,87605.0,0.3191378]
[1767243601784,0.01144,87617.0,87605.0,0.33055267]
[1767243602408,0.01144,87617.0,87607.0,0.3191378]
[1767243602814,0.01144,87617.0,87602.0,0.33055306]
[1767243602991,0.17448801,87617.0,87602.0,0.33055306]
[1767243603441,0.17448801,87617.0,87602.0,0.3191378]
[1767243604320,0.01144,87616.0,87602.0,0.33055306]
[1767243604518,0.01144,87616.0,87603.0,0.3191378]
[1767243604922,0.01144,87615.0,87603.0,0.3191378]
[1767243605319,0.51692077,87620.0,87603.0,0.3191378]
[1767243605544,0.05712,87619.0,87603.0,0.33055293]
[1767243605720,0.05712,87619.0,87603.0,0.3191378]
[1767243608806,0.01144,87618.0,87603.0,0.33055293]
[1767243609219,0.01144,87618.0,87604.0,0.3191378]
[1767243609388,0.01144,87618.0,87604.0,0.3305528]
[1767243610071,0.01144,87618.0,87604.0,0.3191378]
[1767243610679,0.01144,87618.0,87604.0,0.3305528]
[1767243611245,0.01144,87618.0,87604.0,0.3191378]
[1767243611829,0.01144,87618.0,87604.0,0.3305528]
[1767243611995,0.01144,87618.0,87604.0,0.3191378]
[1767243612196,0.01144,87618.0,87604.0,0.3305528]
[1767243612597,0.01144,87618.0,87605.0,0.33055267]
[1767243613013,0.01144,87618.0,87606.0,0.01141474]
[1767243613720,0.01144,87617.0,87608.0,0.01141448]
[1767243613935,0.01144,87617.0,87606.0,0.01141474]
[1767243614353,0.01144,87617.0,87607.0,0.01141461]
[1767243614653,0.01144,87617.0,87609.0,0.01141435]
[1767243614826,0.16186452,87622.0,87609.0,0.01141435]
[1767243615031,0.15622993,87627.0,87611.0,0.01141409]
[1767243615231,0.15622993,87627.0,87612.0,0.01141396]
[1767243615232,0.05712,87626.0,87612.0,0.01141396]
[1767243615430,0.05712,87626.0,87611.0,0.01141409]
[1767243615647,0.05712,87626.0,87610.0,0.01141422]
[1767243615834,0.05712,87626.0,87610.0,0.51692077]
[1767243616031,0.05712,87626.0,87610.0,0.52833499]
[1767243616235,0.05712,87626.0,87610.0,0.51692077]
[1767243616760,0.05712,87626.0,87610.0,0.52833499]
[1767243616953,0.05712,87626.0,87610.0,0.51692077]
[1767243617171,0.05712,87626.0,87609.0,0.01141435]
[1767243617869,0.05712,87626.0,87609.0,0.3191378]
[1767243618235,0.21174667,87626.0,87609.0,0.3191378]
[1767243621537,0.21174667,87626.0,87609.0,0.33055215]
[1767243621742,0.21174667,87626.0,87609.0,0.01141435]
[1767243621949,0.21174667,87626.0,87610.0,0.30318156]
[1767243622308,0.21174667,87626.0,87610.0,0.31459578]
[1767243622885,0.0001459,87632.0,87615.0,0.01141357]
[1767243623085,0.51692077,87630.0,87616.0,0.30318156]
[1767243624085,0.51692077,87630.0,87610.0,0.51692077]
[1767243624086,0.04568,87629.0,87621.0,0.30318156]
[1767243624288,0.05712,87629.0,87621.0,0.30318156]
[1767243624727,0.01144,87628.0,87621.0,0.30318156]
[1767243624942,0.01144,87628.0,87620.0,0.51692077]
[1767243625169,0.01144,87628.0,87621.0,0.30318156]
[1767243625691,0.01144,87627.0,87621.0,0.30318156]
[1767243626131,0.01144,87626.0,87621.0,0.30318156]
[1767243626733,0.01144,87625.0,87621.0,0.30318156]
[1767243626938,0.010891,87625.0,87619.0,0.30318156]
[1767243628041,0.010891,87625.0,87619.0,0.3145946]
[1767243628202,0.010891,87625.0,87619.0,0.30318156]
[1767243628426,0.01144,87624.0,87617.0,0.30318156]
[1767243629316,0.00289587,87623.0,87617.0,0.30318156]
[1767243635416,0.00289587,87623.0,87619.0,0.30318156]
[1767243639869,0.0001459,87632.0,87619.0,0.30318156]
[1767243640072,0.01144,87631.0,87619.0,0.30318156]
[1767243640218,0.01144,87631.0,87540.0,3.62850103]
[1767243640219,0.51671913,87630.0,87614.0,0.30318156]
[1767243640418,0.51671913,87630.0,87614.0,0.31459526]
[1767243640840,0.51671913,87630.0,87614.0,0.30318156]
[1767243641075,0.51671913,87630.0,87614.0,0.31459526]
[1767243641285,0.51671913,87630.0,87616.0,0.30318156]
[1767243641796,0.51671913,87630.0,87616.0,0.314595]
[1767243642360,0.51671913,87630.0,87616.0,0.30318156]
[1767243642721,0.51671913,87630.0,87616.0,0.314595]
[1767243642897,0.01144,87631.0,87616.0,0.314595]
[1767243644683,0.01144,87631.0,87616.0,0.30318156]
[1767243644975,0.01144,87631.0,87617.0,0.31459487]
[1767243645187,0.01144,87631.0,87618.0,0.30318156]
[1767243650365,0.01144,87636.0,87623.0,0.27451821]
[1767243650989,0.01144,87636.0,87621.0,0.01141278]
[1767243650990,0.01144,87636.0,87627.0,0.27451821]
[1767243651727,0.01144,87636.0,87627.0,0.28593021]
[1767243651983,0.00544,87636.0,87629.0,0.27451821]
[1767243652280,0.00544,87636.0,87631.0,0.27451821]
[1767243654893,0.01144,87635.0,87625.0,0.27451821]
[1767243655496,0.01144,87635.0,87625.0,0.28593047]
[1767243655873,0.01144,87635.0,87626.0,0.01141213]
[1767243656078,0.01144,87635.0,87627.0,0.27451821]
[1767243659001,0.01144,87635.0,87627.0,0.28593021]
[1767243659170,0.01144,87635.0,87627.0,0.27451821]
[1767243661203,0.01144,87635.0,87619.0,0.27451821]
[1767243662029,0.01144,87635.0,87619.0,0.28593125]
[1767243662380,0.01144,87635.0,87619.0,0.27451821]
[1767243662682,0.01144,87635.0,87619.0,0.28593125]
[1767243662893,0.01144,87635.0,87619.0,0.27451821]
[1767243664087,0.01144,87635.0,87619.0,0.28593125]
[1767243664283,0.01144,87635.0,87621.0,0.27451821]
[1767243664820,0.01144,87635.0,87621.0,0.28593099]
[1767243665254,0.01144,87635.0,87621.0,0.01141278]
[1767243665459,0.01144,87635.0,87622.0,0.27451821]
[1767243666238,0.6899474,87640.0,87630.0,0.01141161]
[1767243666511,0.01144,87636.0,87631.0,0.01141148]
[1767243666855,0.01144,87636.0,87632.0,0.01141135]
[1767243667276,0.01144,87636.0,87631.0,0.01141148]
[1767243667733,0.01144,87636.0,87632.0,0.01141135]
[1767243668029,0.01144,87636.0,87633.0,0.01141122]
[1767243668359,0.010891,87636.0,87633.0,0.01141122]
[1767243669790,5.252e-05,87640.0,87634.0,0.2859293]
[1767243670014,5.252e-05,87640.0,87636.0,0.27451821]
[1767243670359,5.252e-05,87640.0,87635.0,0.01141096]
[1767243670534,5.252e-05,87640.0,87636.0,0.01141083]
[1767243671624,5.252e-05,87640.0,87637.0,0.06846408]
[1767243672041,5.252e-05,87640.0,87638.0,0.27451821]
[1767243672236,0.2158474,87650.0,87646.0,0.27451821]
[1767243672237,0.0001459,87650.0,87646.0,0.27451821]
[1767243672435,0.01144,87649.0,87646.0,0.27446721]
[1767243672801,0.01144,87649.0,87642.0,0.01141005]
[1767243673228,0.01144,87649.0,87643.0,0.01140992]
[1767243673426,0.01144,87649.0,87644.0,0.01140979]
[1767243673627,0.01144,87649.0,87643.0,0.01140992]
[1767243673834,0.01144,87649.0,87644.0,0.285928]
[1767243674046,0.01144,87649.0,87644.0,0.27451821]
[1767243674675,0.01144,87649.0,87644.0,0.285928]
[1767243675056,0.01144,87649.0,87644.0,0.27451821]
[1767243675804,0.01144,87649.0,87644.0,0.285928]
[1767243675998,0.01144,87649.0,87645.0,0.01140966]
[1767243676156,0.01144,87649.0,87644.0,0.285928]
[1767243676508,0.01144,87649.0,87645.0,0.01140966]
[1767243677888,0.01144,87649.0,87646.0,0.01140953]
[1767243678828,0.18561198,87658.0,87651.0,0.28592709]
[1767243678829,0.01144,87652.0,87651.0,0.28592709]
[1767243679028,0.01144,87654.0,87651.0,0.28592709]
[1767243679249,0.00019033,87658.0,87654.0,0.01140849]
[1767243679474,0.00019033,87658.0,87655.0,0.01140836]
[1767243680213,0.00019033,87658.0,87655.0,0.27772953]
[1767243680417,0.00019033,87658.0,87655.0,0.3347713]
[1767243682690,0.01144,87663.0,87657.0,0.0114081]
[1767243683090,0.01144,87663.0,87655.0,0.26632117]
[1767243683511,0.01144,87663.0,87655.0,0.27772953]
[1767243683709,0.01144,87663.0,87655.0,0.26632117]
[1767243684289,0.01144,87663.0,87655.0,0.27772953]
[1767243684490,0.01144,87663.0,87656.0,0.01140823]
[1767243685009,0.01144,87663.0,87657.0,0.0114081]
[1767243686571,0.01144,87663.0,87655.0,0.27772953]
[1767243686699,0.01144,87663.0,87655.0,0.26632117]
[1767243687294,0.01144,87663.0,87653.0,0.01140862]
[1767243687474,0.01144,87663.0,87652.0,0.01140875]
[1767243687621,0.01144,87663.0,87650.0,0.01140901]
[1767243688018,0.01144,87663.0,87649.0,0.28610697]
[1767243688265,0.01144,87663.0,87649.0,0.2861514]
[1767243688481,0.01144,87663.0,87650.0,0.01140901]
[1767243689375,0.01144,87663.0,87651.0,0.01140888]
[1767243689546,0.01144,87663.0,87649.0,0.2861514]
[1767243689905,0.01144,87663.0,87650.0,0.01140901]
[1767243690997,0.01144,87663.0,87651.0,0.01140888]
[1767243691125,0.01144,87663.0,87650.0,0.01140901]
[1767243691327,0.01144,87663.0,87651.0,0.01140888]
[1767243691513,0.01144,87663.0,87650.0,0.01140901]
[1767243691717,0.01144,87663.0,87651.0,0.01140888]
[1767243691928,0.01144,87663.0,87649.0,4.443e-05]
[1767243693016,0.51671913,87660.0,87649.0,4.443e-05]
[1767243694063,0.01144,87663.0,87649.0,4.443e-05]
[1767243694997,0.01144,87663.0,87649.0,0.27474226]
[1767243695319,0.01144,87663.0,87649.0,0.01145357]
[1767243695519,0.01144,87663.0,87650.0,0.27469783]
[1767243696198,0.01144,87663.0,87652.0,0.28610658]
[1767243696448,0.01144,87663.0,87653.0,0.28610645]
[1767243696642,0.01144,87663.0,87656.0,0.01140823]
[1767243697674,0.01144,87663.0,87657.0,0.0114081]
[1767243698354,0.01144,87663.0,87658.0,0.01140797]
[1767243698940,0.01144,87663.0,87657.0,0.0114081]
[1767243699518,0.01144,87663.0,87658.0,0.01140797]
[1767243700103,0.010891,87663.0,87659.0,0.27469783]
[1767243701836,0.01144,87662.0,87659.0,0.27469783]
[1767243702002,0.01144,87662.0,87658.0,0.27469783]
[1767243702181,0.01144,87662.0,87660.0,0.27469783]
[1767243703317,0.0001459,87667.0,87660.0,0.27469783]
[1767243703519,0.01144,87665.0,87662.0,0.00055]
[1767243703675,0.01144,87665.0,87655.0,0.01140836]
[1767243703879,0.000549,87660.0,87656.0,0.27469783]
[1767243704399,0.01144,87665.0,87656.0,0.27469783]
[1767243704562,0.01144,87665.0,87656.0,0.28610606]
[1767243711952,0.01144,87665.0,87657.0,0.0114081]
[1767243712357,0.01144,87665.0,87656.0,0.28610606]
[1767243712810,0.01144,87665.0,87657.0,0.0114081]
[1767243713665,0.01144,87665.0,87656.0,0.27469783]
[1767243713832,0.01144,87665.0,87656.0,0.28610606]
[1767243714816,0.01144,87665.0,87656.0,0.27469783]
[1767243715514,0.01144,87665.0,87652.0,0.01140875]
[1767243715712,0.51636482,87662.0,87651.0,0.30616369]
[1767243715915,0.20568964,87661.0,87649.0,4.443e-05]
[1767243716120,0.51636482,87660.0,87649.0,0.01145357]
[1767243716579,0.51636482,87660.0,87650.0,0.01140901]
[1767243717565,0.51636482,87660.0,87649.0,0.01145357]
[1767243717725,0.51636482,87660.0,87650.0,0.01140901]
[1767243719495,0.51636482,87660.0,87649.0,4.443e-05]
[1767243719717,0.51636482,87660.0,87649.0,0.01145357]
[1767243719916,0.51636482,87660.0,87650.0,0.01140901]
[1767243720135,0.20568964,87661.0,87651.0,0.01140888]
[1767243720288,0.20568964,87661.0,87650.0,0.01140901]
[1767243720289,0.01144,87665.0,87650.0,0.51636482]
[1767243720491,0.01144,87665.0,87651.0,0.01140888]
[1767243720832,0.01144,87665.0,87653.0,0.01140862]
[1767243721035,0.01144,87665.0,87654.0,0.28333349]
[1767243721244,0.01144,87665.0,87655.0,0.01140836]
[1767243721446,0.01144,87665.0,87656.0,0.01140823]
[1767243722080,0.01144,87665.0,87657.0,0.0114081]
[1767243722529,0.01144,87665.0,87656.0,0.01140823]
[1767243723975,0.01144,87665.0,87654.0,0.28333349]
[1767243724391,0.01144,87665.0,87657.0,0.271925]
[1767243724858,0.000549,87657.0,87651.0,0.01140888]
[1767243725089,0.20798872,87665.0,87650.0,0.51636482]
[1767243725298,0.20798872,87665.0,87649.0,0.27196943]
[1767243725447,0.20798872,87665.0,87658.0,0.000549]
[1767243725830,0.20798872,87665.0,87649.0,0.28337857]
[1767243726211,0.20798872,87665.0,87651.0,0.01140888]
[1767243726877,0.20798872,87665.0,87652.0,0.01140875]
[1767243727068,0.20798872,87665.0,87653.0,0.01140862]
[1767243727423,0.20798872,87665.0,87654.0,0.01140849]
[1767243727644,0.20798872,87665.0,87652.0,0.01140875]
[1767243727817,0.20798872,87665.0,87653.0,0.01140862]
[1767243728225,0.01144,87665.0,87653.0,0.01140862]
[1767243729147,0.01144,87665.0,87654.0,0.01140849]
[1767243731083,0.01144,87665.0,87653.0,0.01140862]
[1767243731305,0.01144,87665.0,87652.0,0.01140875]
[1767243731505,0.01144,87665.0,87653.0,0.01140862]
[1767243732027,0.01144,87665.0,87654.0,0.01140849]
[1767243732247,0.01144,87665.0,87653.0,0.01140862]
[1767243732579,0.01144,87665.0,87654.0,0.01140849]
[1767243732873,0.01144,87665.0,87653.0,0.01140862]
[1767243733482,0.01144,87665.0,87654.0,0.01140849]
[1767243733777,0.01144,87665.0,87655.0,0.01140836]
[1767243736281,0.01144,87665.0,87653.0,0.01140862]
[1767243736677,0.01144,87665.0,87652.0,0.28333375]
[1767243736896,0.01144,87665.0,87654.0,0.01140849]
[1767243737572,0.01144,87665.0,87655.0,0.01140836]
[1767243737771,0.01144,87665.0,87656.0,0.01140823]
[1767243738722,0.01144,87665.0,87655.0,0.01140836]
[1767243738871,0.01144,87665.0,87657.0,0.0114081]
[1767243739077,0.01144,87665.0,87658.0,0.28333297]
[1767243739422,0.01144,87665.0,87660.0,0.01140771]
[1767243739615,0.01144,87665.0,87661.0,0.271925]
[1767243740713,0.010891,87665.0,87661.0,0.271925]
[1767243740934,0.010891,87665.0,87661.0,0.28333258]
[1767243741214,0.0001459,87667.0,87661.0,0.271925]
[1767243741774,0.0001459,87667.0,87658.0,0.01140797]
[1767243742184,0.0001459,87667.0,87657.0,0.0114081]
[1767243742395,0.0001459,87667.0,87658.0,0.01140797]
[1767243742609,0.0001459,87667.0,87657.0,0.0114081]
[1767243742798,0.0001459,87667.0,87656.0,0.23787209]
[1767243744463,0.0001459,87667.0,87657.0,0.0114081]
[1767243745414,0.0001459,87667.0,87658.0,0.01140797]
[1767243746247,0.0001459,87667.0,87657.0,0.0114081]
[1767243746950,0.0001459,87667.0,87658.0,0.01140797]
[1767243747356,0.0001459,87667.0,87657.0,0.0114081]
[1767243747585,0.0001459,87667.0,87658.0,0.01140797]
[1767243748967,0.0001459,87667.0,87657.0,0.0114081]
[1767243749644,0.0001459,87667.0,87658.0,0.01140797]
[1767243751345,0.0001459,87667.0,87657.0,0.0114081]
[1767243751695,0.0001459,87667.0,87658.0,0.01140797]
[1767243752698,0.0001459,87667.0,87657.0,0.24928019]
[1767243753960,0.0001459,87667.0,87658.0,0.01140797]
[1767243754594,0.0001459,87667.0,87657.0,0.24928019]
[1767243754777,0.0001459,87667.0,87658.0,0.01140797]
[1767243755148,0.0001459,87667.0,87657.0,0.24928019]
[1767243755517,0.0001459,87667.0,87658.0,0.02287]
[1767243755715,0.0001459,87667.0,87657.0,0.24928019]
[1767243756145,0.0001459,87667.0,87658.0,0.01140797]
[1767243756759,0.0001459,87667.0,87657.0,0.24928019]
[1767243757267,0.0001459,87667.0,87658.0,0.24928006]
[1767243758098,0.0001459,87667.0,87658.0,0.23787209]
[1767243758319,0.0001459,87667.0,87658.0,0.24928006]
[1767243758690,0.0001459,87667.0,87658.0,0.23787209]
[1767243759649,0.0001459,87667.0,87659.0,0.01140784]
[1767243759801,0.0001459,87667.0,87661.0,0.01140758]
[1767243759988,0.0001459,87667.0,87663.0,0.23787209]
[1767243760187,0.0001459,87667.0,87663.0,0.24927941]
[1767243760383,0.0001459,87667.0,87664.0,0.01140719]
[1767243760646,0.0001459,87667.0,87663.0,0.24927941]
[1767243760847,0.0001459,87667.0,87663.0,0.23787209]
[1767243761049,0.0001459,87667.0,87663.0,0.24927941]
[1767243761192,0.0001459,87667.0,87663.0,0.23787209]
[1767243761394,0.0001459,87667.0,87663.0,0.24927941]
[1767243763229,0.0001459,87667.0,87664.0,0.23787209]
[1767243764952,0.01144,87670.0,87667.0,0.23801709]
[1767243765358,0.01144,87670.0,87664.0,0.01140719]
[1767243765934,0.01144,87670.0,87665.0,0.01140706]
[1767243766771,0.01144,87670.0,87666.0,0.01140693]
[1767243766988,0.01144,87670.0,87665.0,0.01140706]
[1767243767573,0.0001459,87676.0,87665.0,0.01140706]
[1767243767574,0.0001459,87676.0,87668.0,0.23787209]
[1767243767788,0.0001459,87676.0,87667.0,0.0114068]
[1767243767940,0.01144,87675.0,87668.0,0.23787209]
[1767243769418,0.01144,87674.0,87668.0,0.23787209]